fUSD/lending_fUSD_20251112
["ID","MTS","AMOUNT","RATE_DAILY","PERIOD"]
[393737024,1762957841074,-16130.30658876,0.0003797,2]
[393737025,1762957841083,-177.02344936,0.00037988,2]
[393737026,1762957841092,-233.0,0.0003799,2]
[393737027,1762957841101,-15368.19613051,0.00038,2]
[393737028,1762957841110,-76497.02472379,0.00038,2]
[393737029,1762957841119,-300.0,0.00038,120]
[393737030,1762957841128,-622.30222,0.00038088,30]
[393737031,1762957841137,-168.0,0.00038107,2]
[393737032,1762957841147,-2500.0,0.00038288,2]
[393737033,1762957841157,-622.30222,0.00038288,30]
[393737034,1762957841167,-168.0,0.00038333,2]
[393737035,1762957841176,-1000.0,0.00038356,120]
[393737036,1762957841186,-1000.0,0.00038356,120]
[393737037,1762957841195,-1000.0,0.00038356,120]
[393737038,1762957841205,-580.52998147,0.00038356,120]
[393737039,1762957841218,-156.53410879,0.00038362,15]
[393737040,1762957841228,-2281.23837105,0.00038362,2]
[393737041,1762957841237,-195.48190412,0.00038388,13]
[393737042,1762957841248,-168.0,0.00038428,2]
[393737043,1762957841258,-3804.72298694,0.00038446,4]
[393737044,1762957841267,-233.0,0.00038446,2]
[393737045,1762957841277,-163.51,0.00038446,2]
[393737046,1762957841286,-233.0,0.00038454,2]
[393737047,1762957841298,-72289.7367519,0.00038455,4]
[393737048,1762957841308,-233.0,0.00038455,2]
[393737049,1762957841318,-3804.72298694,0.00038463,4]
[393737050,1762957841327,-233.0,0.00038463,2]
[393737051,1762957841337,-34242.5068825,0.00038464,4]
[393737052,1762957841346,-76094.4597388,0.00038465,4]
[393737053,1762957841356,-1267.32740787,0.00038465,4]
[393737054,1762957841366,-500.0,0.00038472,2]
[393737055,1762957841376,-500.0,0.00038472,15]
[393737056,1762957841385,-449.97090293,0.00038472,15]
[393737057,1762957841395,-500.0,0.00038472,15]
[393737058,1762957841405,-500.0,0.00038472,7]
[393737059,1762957841415,-500.0,0.00038472,7]
[393737060,1762957841425,-609.57648347,0.00038472,15]
[393737061,1762957841435,-500.0,0.00038472,2]
[393737062,1762957841445,-500.0,0.00038472,15]
[393737063,1762957841455,-500.0,0.00038472,15]
[393737064,1762957841465,-500.0,0.00038472,7]
[393737065,1762957841474,-500.0,0.00038472,7]
[393737066,1762957841484,-609.57648347,0.00038472,15]
[393737067,1762957841494,-500.0,0.00038472,15]
[393737068,1762957841504,-432.18111829,0.00038472,2]
[393737069,1762957841514,-500.0,0.00038472,7]
[393737070,1762957841524,-320.00080116,0.00038472,7]
[393737071,1762957841534,-609.57648347,0.00038472,15]
[393737072,1762957841544,-609.57648347,0.00038472,15]
[393737073,1762957841554,-500.0,0.00038472,15]
[393737074,1762957841565,-627.14831839,0.00038472,7]
[393737075,1762957841575,-609.57648347,0.00038472,15]
[393737076,1762957841585,-197.97667929,0.00038472,15]
[393737077,1762957841594,-609.57648347,0.00038472,15]
[393737078,1762957841604,-609.57648347,0.00038472,15]
[393737079,1762957841614,-609.57648347,0.00038472,15]
[393737080,1762957841623,-437.98377753,0.00038472,15]
[393737081,1762957841633,-609.57648347,0.00038472,15]
[393737082,1762957841643,-500.0,0.00038472,15]
[393737083,1762957841653,-609.57648347,0.00038472,15]
[393737084,1762957841663,-609.57648347,0.00038472,15]
[393737085,1762957841672,-609.57648347,0.00038472,15]
[393737086,1762957841682,-609.57648347,0.00038472,15]
[393737087,1762957841692,-609.57648347,0.00038472,15]
[393737088,1762957841702,-609.57648347,0.00038472,15]
[393737089,1762957841711,-609.57648347,0.00038472,15]
[393737090,1762957841721,-609.57648347,0.00038472,15]
[393737091,1762957841730,-609.57648347,0.00038472,15]
[393737092,1762957841741,-609.57648347,0.00038472,15]
[393737093,1762957841750,-609.57648347,0.00038472,15]
[393737094,1762957841759,-609.57648347,0.00038472,15]
[393737095,1762957841769,-609.57648347,0.00038472,15]
[393737096,1762957841778,-609.57648347,0.00038472,15]
[393737097,1762957841787,-609.57648347,0.00038472,15]
[393737098,1762957841796,-609.57648347,0.00038472,15]
[393737099,1762957841805,-609.57648347,0.00038472,15]
[393737100,1762957841815,-609.57648347,0.00038472,15]
[393737101,1762957841824,-609.57648347,0.00038472,15]
[393737102,1762957841834,-609.57648347,0.00038472,15]
[393737103,1762957841843,-609.57648347,0.00038472,15]
[393737104,1762957841853,-609.57648347,0.00038472,15]
[393737105,1762957841862,-609.57648347,0.00038472,15]
[393737106,1762957841871,-609.57648347,0.00038472,15]
[393737107,1762957841880,-609.57648347,0.00038472,15]
[393737108,1762957841890,-609.57648347,0.00038472,15]
[393737109,1762957841899,-609.57648347,0.00038472,15]
[393737110,1762957841908,-609.57648347,0.00038472,15]
[393737111,1762957841917,-609.57648347,0.00038472,15]
[393737112,1762957841926,-609.57648347,0.00038472,15]
[393737113,1762957841935,-609.57648347,0.00038472,15]
[393737114,1762957841944,-609.57648347,0.00038472,15]
[393737115,1762957841953,-609.57648347,0.00038472,15]
[393737116,1762957841963,-609.57648347,0.00038472,15]
[393737117,1762957841972,-609.57648347,0.00038472,15]
[393737118,1762957841981,-609.57648347,0.00038472,15]
[393737119,1762957841992,-609.57648347,0.00038472,15]
[393737120,1762957842002,-609.57648347,0.00038472,15]
[393737121,1762957842012,-609.57648347,0.00038472,15]
[393737122,1762957842021,-609.57648347,0.00038472,15]
[393737123,1762957842031,-609.57648347,0.00038472,15]
[393737124,1762957842040,-609.57648347,0.00038472,15]
[393737125,1762957842049,-609.57648347,0.00038472,15]
[393737126,1762957842058,-609.57648347,0.00038472,15]
[393737127,1762957842067,-609.57648347,0.00038472,15]
[393737128,1762957842077,-500.0,0.00038473,5]
[393737129,1762957842086,-500.0,0.00038473,5]
[393737130,1762957842095,-500.0,0.00038473,5]
[393737131,1762957842104,-315.647,0.00038474,51]
[393737132,1762957842113,-258.28,0.00038474,30]
[393737133,1762957842123,-313298.4421,0.00038475,2]
[393737134,1762957842132,-622.30222,0.00038488,30]
[393737135,1762957842140,-168.0,0.0003856,2]
[393737136,1762957842150,-2281.23837103,0.00038571,2]
[393737137,1762957842159,-500.0,0.00038594,30]
[393737138,1762957842168,-622.30222,0.00038688,30]
[393737139,1762957842178,-1000.0,0.000387,14]
[393737140,1762957842187,-500.0,0.00038729,30]
[393737141,1762957842196,-258.28,0.00038748,30]
[393737142,1762957842205,-2281.23837103,0.0003878,2]
[393737143,1762957842220,-2000.0,0.000388,14]
[393737144,1762957842230,-156.53410877,0.00038833,15]
[393737145,1762957842240,-168.248,0.00038879,2]
[393737146,1762957842250,-574.0,0.00038879,2]
[393737147,1762957842260,-608.0,0.00038879,2]
[393737148,1762957842270,-1597.0,0.00038879,2]
[393737149,1762957842279,-821.0,0.00038879,2]
[393737150,1762957842291,-2143.0,0.00038879,2]
[393737151,1762957842300,-560.0,0.00038879,2]
[393737152,1762957842310,-3000.0,0.000389,14]
[393737153,1762957842320,-1000.0,0.00038968,120]
[393737154,1762957842329,-1000.0,0.00038968,2]
[393737155,1762957842338,-433.74,0.00038986,2]
[393737156,1762957842347,-2281.23837103,0.0003899,2]
[393737157,1762957842357,-844.88493858,0.0003899,4]
[393737158,1762957842366,-106020.53990327,0.00039,7]
[393737159,1762957842375,-258.28,0.00039022,30]
[393737160,1762957842384,-168.0,0.00039041,2]
[393737161,1762957842393,-168.0,0.00039063,2]
[393737162,1762957842403,-199.0,0.00039067,7]
[393737163,1762957842412,-5000.0,0.00039068,30]
[393737164,1762957842421,-167.47242141,0.00039073,2]
[393737165,1762957842430,-622.30222,0.00039088,30]
[393737166,1762957842439,-177.02344936,0.00039117,2]
[393737167,1762957842448,-1267.32740787,0.00039158,4]
[393737168,1762957842459,-1267.32740787,0.00039168,4]
[393737169,1762957842469,-500.0,0.00039173,5]
[393737170,1762957842479,-54.75567727,0.00039177,30]
[393737171,1762957842488,-999.0,0.00039177,120]
[393737172,1762957842497,-1196.0,0.00039178,5]
[393737173,1762957842507,-310.0,0.00039178,14]
[393737174,1762957842516,-500.0,0.00039178,15]
[393737175,1762957842525,-500.0,0.00039178,15]
[393737176,1762957842535,-639.20756675,0.00039178,20]
[393737177,1762957842544,-500.0,0.00039178,20]
[393737178,1762957842554,-500.0,0.00039178,20]
[393737179,1762957842564,-500.0,0.00039178,20]
[393737180,1762957842574,-500.0,0.00039178,20]
[393737181,1762957842583,-500.0,0.00039178,20]
[393737182,1762957842593,-500.0,0.00039178,20]
[393737183,1762957842603,-500.0,0.00039178,20]
[393737184,1762957842612,-500.0,0.00039178,20]
[393737185,1762957842621,-500.0,0.00039178,20]
[393737186,1762957842630,-500.0,0.00039178,20]
[393737187,1762957842639,-500.0,0.00039178,20]
[393737188,1762957842648,-500.0,0.00039178,20]
[393737189,1762957842657,-432.40917561,0.00039178,20]
[393737190,1762957842667,-500.0,0.00039178,20]
[393737191,1762957842827,-500.0,0.00039178,20]
[393737192,1762957842837,-500.0,0.00039178,20]
[393737193,1762957842847,-500.0,0.00039178,20]
[393737194,1762957842858,-500.0,0.00039178,20]
[393737195,1762957842867,-500.0,0.00039178,20]
[393737196,1762957842876,-500.0,0.00039178,20]
[393737197,1762957842886,-500.0,0.00039178,20]
[393737198,1762957842895,-500.0,0.00039178,20]
[393737199,1762957842906,-500.0,0.00039178,20]
[393737200,1762957842915,-627.13013756,0.00039178,20]
[393737201,1762957842924,-500.0,0.00039178,20]
[393737202,1762957842934,-500.0,0.00039178,20]
[393737203,1762957842943,-500.0,0.00039178,20]
[393737204,1762957842952,-500.0,0.00039178,20]
[393737205,1762957842961,-500.0,0.00039178,20]
[393737206,1762957842970,-500.0,0.00039178,20]
[393737207,1762957842980,-500.0,0.00039178,20]
[393737208,1762957842989,-500.0,0.00039178,20]
[393737209,1762957842998,-500.0,0.00039178,20]
[393737210,1762957843007,-500.0,0.00039178,20]
[393737211,1762957843016,-500.0,0.00039178,20]
[393737212,1762957843025,-500.0,0.00039178,20]
[393737213,1762957843034,-500.0,0.00039178,20]
[393737214,1762957843043,-500.0,0.00039178,20]
[393737215,1762957843052,-500.0,0.00039178,20]
[393737216,1762957843062,-500.0,0.00039178,20]
[393737217,1762957843072,-562.13278875,0.00039178,20]
[393737219,1762957843081,-500.0,0.00039178,20]
[393737220,1762957843090,-500.0,0.00039178,20]
[393737222,1762957843099,-500.0,0.00039178,20]
[393737223,1762957843108,-500.0,0.00039178,20]
[393737224,1762957843117,-500.0,0.00039178,20]
[393737225,1762957843126,-500.0,0.00039178,20]
[393737226,1762957843135,-500.0,0.00039178,20]
[393737227,1762957843144,-500.0,0.00039178,20]
[393737228,1762957843153,-500.0,0.00039178,20]
[393737229,1762957843163,-500.0,0.00039178,20]
[393737230,1762957843172,-615.68904382,0.00039178,20]
[393737231,1762957843181,-500.0,0.00039178,20]
[393737232,1762957843191,-500.0,0.00039178,20]
[393737233,1762957843200,-500.0,0.00039178,20]
[393737234,1762957843212,-500.0,0.00039178,20]
[393737235,1762957843221,-500.0,0.00039178,20]
[393737236,1762957843230,-309.5721749,0.00039178,20]
[393737237,1762957843240,-500.0,0.00039178,20]
[393737238,1762957843250,-500.0,0.00039178,20]
[393737239,1762957843260,-500.0,0.00039178,20]
[393737240,1762957843270,-500.0,0.00039178,20]
[393737241,1762957843279,-500.0,0.00039178,20]
[393737242,1762957843291,-500.0,0.00039178,20]
[393737243,1762957843301,-500.0,0.00039178,20]
[393737244,1762957843310,-500.0,0.00039178,20]
[393737245,1762957843319,-500.0,0.00039178,20]
[393737246,1762957843328,-500.0,0.00039178,20]
[393737247,1762957843337,-500.0,0.00039178,20]
[393737248,1762957843346,-500.0,0.00039178,20]
[393737249,1762957843355,-619.70034461,0.00039178,20]
[393737250,1762957843364,-500.0,0.00039178,20]
[393737251,1762957843374,-500.0,0.00039178,20]
[393737252,1762957843383,-500.0,0.00039178,20]
[393737253,1762957843392,-500.0,0.00039178,20]
[393737254,1762957843402,-500.0,0.00039178,20]
[393737255,1762957843412,-500.0,0.00039178,20]
[393737256,1762957843421,-334.17736198,0.00039178,20]
[393737257,1762957843430,-500.0,0.00039178,20]
[393737258,1762957843440,-500.0,0.00039178,20]
[393737259,1762957843449,-500.0,0.00039178,20]
[393737260,1762957843458,-192.02538278,0.00039178,20]
[393737261,1762957843468,-500.0,0.00039178,20]
[393737262,1762957843478,-500.0,0.00039178,20]
[393737263,1762957843487,-500.24410107,0.00039178,20]
[393737264,1762957843496,-231.2781194,0.00039178,20]
[393737265,1762957843505,-500.0,0.00039178,20]
[393737266,1762957843515,-193.3,0.00039178,20]
[393737267,1762957843524,-500.0,0.00039178,20]
[393737268,1762957843533,-500.0,0.00039178,20]
[393737269,1762957843542,-500.0,0.00039178,20]
[393737270,1762957843552,-500.0,0.00039178,20]
[393737271,1762957843562,-500.0,0.00039178,20]
[393737272,1762957843571,-500.0,0.00039178,20]
[393737273,1762957843580,-500.0,0.00039178,20]
[393737274,1762957843589,-500.0,0.00039178,20]
[393737275,1762957843598,-355.31274548,0.00039178,20]
[393737276,1762957843607,-500.0,0.00039178,20]
[393737277,1762957843617,-500.0,0.00039178,20]
[393737278,1762957843626,-476.11336872,0.00039178,20]
[393737279,1762957843635,-500.0,0.00039178,20]
[393737280,1762957843644,-500.0,0.00039178,20]
[393737281,1762957843653,-518.73407048,0.00039178,20]
[393737282,1762957843662,-500.0,0.00039178,20]
[393737283,1762957843671,-500.0,0.00039178,20]
[393737284,1762957843681,-500.0,0.00039178,20]
[393737285,1762957843691,-310.79747451,0.00039178,20]
[393737286,1762957843701,-1000.0,0.00039178,2]
[393737287,1762957843711,-1000.0,0.00039178,2]
[393737288,1762957843719,-1000.0,0.00039178,2]
[393737289,1762957843730,-1000.0,0.00039178,2]
[393737290,1762957843739,-483.07280378,0.00039178,20]
[393737291,1762957843747,-500.0,0.00039178,20]
[393737292,1762957843756,-500.0,0.00039178,20]
[393737293,1762957843765,-500.0,0.00039178,20]
[393737294,1762957843774,-500.0,0.00039178,20]
[393737295,1762957843783,-500.0,0.00039178,20]
[393737296,1762957843792,-500.0,0.00039178,20]
[393737297,1762957843801,-500.0,0.00039178,20]
[393737298,1762957843810,-500.0,0.00039178,20]
[393737299,1762957843819,-500.0,0.00039178,20]
[393737300,1762957843829,-500.0,0.00039178,20]
[393737301,1762957843838,-500.0,0.00039178,20]
[393737302,1762957843847,-303.41876755,0.00039178,20]
[393737303,1762957843856,-500.0,0.00039178,20]
[393737304,1762957843865,-451.96193687,0.00039178,20]
[393737305,1762957843874,-500.0,0.00039178,20]
[393737306,1762957843883,-500.0,0.00039178,20]
[393737307,1762957843891,-500.0,0.00039178,20]
[393737308,1762957843900,-152.56197667,0.00039178,20]
[393737309,1762957843909,-500.0,0.00039178,20]
[393737310,1762957843919,-451.73169772,0.00039178,20]
[393737311,1762957843928,-570.13294595,0.00039178,20]
[393737312,1762957843937,-500.0,0.00039178,20]
[393737313,1762957843946,-196.2467722,0.00039178,20]
[393737314,1762957843955,-500.0,0.00039178,20]
[393737315,1762957843965,-406.87450242,0.00039178,20]
[393737316,1762957843974,-512.46718402,0.00039178,20]
[393737317,1762957843983,-487.62945193,0.00039178,20]
[393737318,1762957843992,-249.46966786,0.00039178,20]
[393737319,1762957844001,-500.0,0.00039178,20]
[393737320,1762957844010,-500.0,0.00039178,20]
[393737321,1762957844019,-500.0,0.00039178,20]
[393737322,1762957844028,-500.0,0.00039178,20]
[393737323,1762957844037,-500.0,0.00039178,20]
[393737324,1762957844047,-500.0,0.00039178,20]
[393737325,1762957844056,-500.0,0.00039178,20]
[393737326,1762957844066,-607.19056721,0.00039178,20]
[393737327,1762957844076,-452.34027239,0.00039178,20]
[393737328,1762957844086,-500.0,0.00039178,20]
[393737329,1762957844095,-276.54807613,0.00039178,20]
[393737330,1762957844105,-500.0,0.00039178,20]
[393737331,1762957844115,-311.50056147,0.00039178,20]
[393737332,1762957844124,-500.0,0.00039178,20]
[393737333,1762957844134,-525.77353451,0.00039178,20]
[393737334,1762957844143,-500.0,0.00039178,20]
[393737335,1762957844153,-307.37661852,0.00039178,20]
[393737336,1762957844162,-499.07585741,0.00039178,20]
[393737337,1762957844172,-500.0,0.00039178,20]
[393737338,1762957844181,-513.30814578,0.00039178,20]
[393737339,1762957844191,-500.0,0.00039178,20]
[393737340,1762957844201,-644.55225181,0.00039178,20]
[393737341,1762957844213,-500.0,0.00039178,20]
[393737342,1762957844223,-500.0,0.00039178,20]
[393737343,1762957844232,-500.0,0.00039178,20]
[393737344,1762957844242,-500.0,0.00039178,20]
[393737345,1762957844254,-500.0,0.00039178,20]
[393737346,1762957844263,-500.0,0.00039178,20]
[393737347,1762957844274,-500.0,0.00039178,20]
[393737348,1762957844284,-500.0,0.00039178,20]
[393737349,1762957844294,-500.0,0.00039178,20]
[393737350,1762957844303,-537.19704525,0.00039178,20]
[393737351,1762957844313,-526.58230548,0.00039178,20]
[393737352,1762957844323,-454.69480274,0.00039178,20]
[393737353,1762957844332,-500.0,0.00039178,20]
[393737354,1762957844341,-500.0,0.00039178,20]
[393737355,1762957844351,-590.74195738,0.00039178,20]
[393737356,1762957844361,-500.0,0.00039178,20]
[393737357,1762957844370,-500.0,0.00039178,20]
[393737358,1762957844379,-500.0,0.00039178,20]
[393737359,1762957844390,-218.69351316,0.00039178,20]
[393737360,1762957844399,-500.0,0.00039178,20]
[393737361,1762957844408,-500.0,0.00039178,20]
[393737362,1762957844417,-500.0,0.00039178,20]
[393737363,1762957844427,-500.0,0.00039178,20]
[393737364,1762957844436,-500.0,0.00039178,20]
[393737365,1762957844446,-500.0,0.00039178,20]
[393737366,1762957844455,-500.0,0.00039178,20]
[393737367,1762957844464,-603.1958783,0.00039178,20]
[393737368,1762957844473,-500.0,0.00039178,20]
[393737369,1762957844483,-500.0,0.00039178,20]
[393737370,1762957844493,-516.89105436,0.00039178,20]
[393737371,1762957844502,-347.41095185,0.00039178,20]
[393737372,1762957844511,-593.1313449,0.00039178,20]
[393737373,1762957844520,-500.0,0.00039178,20]
[393737374,1762957844530,-500.0,0.00039178,20]
[393737375,1762957844539,-500.0,0.00039178,20]
[393737376,1762957844548,-521.28948922,0.00039178,20]
[393737377,1762957844558,-500.0,0.00039178,20]
[393737378,1762957844567,-611.11332087,0.00039178,20]
[393737379,1762957844576,-500.0,0.00039178,20]
[393737380,1762957844585,-500.0,0.00039178,20]
[393737381,1762957844594,-500.0,0.00039178,20]
[393737382,1762957844603,-500.0,0.00039178,20]
[393737383,1762957844613,-500.0,0.00039178,20]
[393737384,1762957844623,-500.0,0.00039178,20]
[393737385,1762957844636,-500.0,0.00039178,20]
[393737386,1762957844645,-459.85014282,0.00039178,20]
[393737387,1762957844654,-502.66742111,0.00039178,20]
[393737388,1762957844663,-500.0,0.00039178,20]
[393737389,1762957844671,-562.34543848,0.00039178,20]
[393737390,1762957844680,-500.0,0.00039178,20]
[393737391,1762957844689,-500.0,0.00039178,20]
[393737392,1762957844699,-500.0,0.00039178,20]
[393737393,1762957844708,-317.86723819,0.00039178,20]
[393737394,1762957844717,-500.0,0.00039178,20]
[393737395,1762957844726,-500.0,0.00039178,20]
[393737396,1762957844735,-590.09658189,0.00039178,20]
[393737397,1762957844744,-500.0,0.00039178,20]
[393737398,1762957844753,-500.0,0.00039178,20]
[393737399,1762957844762,-500.0,0.00039178,20]
[393737400,1762957844771,-500.0,0.00039178,20]
[393737401,1762957844781,-500.0,0.00039178,20]
[393737402,1762957844790,-227.5630007,0.00039178,20]
[393737403,1762957844799,-500.0,0.00039178,20]
[393737404,1762957844809,-500.0,0.00039178,20]
[393737405,1762957844819,-500.0,0.00039178,20]
[393737406,1762957844828,-500.0,0.00039178,20]
[393737407,1762957844837,-161.17014639,0.00039178,20]
[393737408,1762957844847,-632.45125664,0.00039178,20]
[393737409,1762957844857,-500.0,0.00039178,20]
[393737410,1762957844867,-500.0,0.00039178,20]
[393737411,1762957844877,-600.0,0.00039178,20]
[393737412,1762957844887,-500.0,0.00039178,20]
[393737413,1762957844897,-500.0,0.00039178,20]
[393737414,1762957844907,-500.0,0.00039178,20]
[393737415,1762957844917,-500.0,0.00039178,20]
[393737416,1762957844927,-500.0,0.00039178,20]
[393737417,1762957844937,-500.0,0.00039178,20]
[393737418,1762957844947,-530.05485785,0.00039178,20]
[393737419,1762957844956,-500.0,0.00039178,20]
[393737420,1762957844965,-528.25593589,0.00039178,20]
[393737421,1762957844974,-500.0,0.00039178,20]
[393737422,1762957844983,-500.0,0.00039178,20]
[393737423,1762957844992,-437.18417214,0.00039178,20]
[393737424,1762957845001,-500.0,0.00039178,20]
[393737425,1762957845011,-205.64135259,0.00039178,20]
[393737426,1762957845020,-500.0,0.00039178,20]
[393737427,1762957845030,-529.08081235,0.00039178,20]
[393737428,1762957845039,-540.72242599,0.00039178,20]
[393737429,1762957845049,-500.0,0.00039178,20]
[393737430,1762957845059,-500.0,0.00039178,20]
[393737431,1762957845068,-500.0,0.00039178,20]
[393737432,1762957845077,-500.0,0.00039178,20]
[393737433,1762957845086,-538.31110291,0.00039178,20]
[393737434,1762957845096,-500.0,0.00039178,20]
[393737435,1762957845105,-231.01675891,0.00039178,20]
[393737436,1762957845116,-582.07501303,0.00039178,20]
[393737437,1762957845126,-614.63068439,0.00039178,20]
[393737438,1762957845135,-460.0,0.00039178,20]
[393737439,1762957845144,-500.0,0.00039178,20]
[393737440,1762957845154,-500.0,0.00039178,20]
[393737441,1762957845163,-500.0,0.00039178,20]
[393737442,1762957845172,-500.0,0.00039178,20]
[393737443,1762957845181,-500.0,0.00039178,20]
[393737444,1762957845190,-500.0,0.00039178,20]
[393737445,1762957845198,-500.0,0.00039178,20]
[393737446,1762957845208,-500.0,0.00039178,20]
[393737447,1762957845220,-500.0,0.00039178,20]
[393737448,1762957845229,-500.0,0.00039178,20]
[393737449,1762957845239,-500.0,0.00039178,20]
[393737450,1762957845248,-500.0,0.00039178,20]
[393737451,1762957845260,-556.95349104,0.00039178,20]
[393737452,1762957845269,-381.08476359,0.00039178,20]
[393737453,1762957845280,-500.0,0.00039178,20]
[393737454,1762957845292,-500.0,0.00039178,20]
[393737455,1762957845301,-500.0,0.00039178,20]
[393737456,1762957845311,-500.0,0.00039178,20]
[393737457,1762957845321,-500.0,0.00039178,20]
[393737458,1762957845329,-500.0,0.00039178,20]
[393737459,1762957845339,-500.0,0.00039178,20]
[393737460,1762957845348,-500.0,0.00039178,20]
[393737461,1762957845357,-500.0,0.00039178,20]
[393737462,1762957845367,-500.0,0.00039178,20]
[393737463,1762957845376,-400.11665273,0.00039178,20]
[393737464,1762957845385,-500.0,0.00039178,20]
[393737465,1762957845394,-500.0,0.00039178,20]
[393737466,1762957845404,-500.0,0.00039178,20]
[393737468,1762957845413,-500.0,0.00039178,20]
[393737470,1762957845422,-500.0,0.00039178,20]
[393737473,1762957845431,-500.0,0.00039178,20]
[393737475,1762957845440,-500.0,0.00039178,20]
[393737476,1762957845449,-409.22437076,0.00039178,20]
[393737477,1762957845458,-500.0,0.00039178,20]
[393737478,1762957845467,-596.4117739,0.00039178,20]
[393737479,1762957845477,-500.0,0.00039178,20]
[393737480,1762957845486,-500.0,0.00039178,20]
[393737481,1762957845496,-280.03447343,0.00039178,20]
[393737482,1762957845505,-571.20668091,0.00039178,20]
[393737483,1762957845515,-500.0,0.00039178,20]
[393737484,1762957845523,-500.0,0.00039178,20]
[393737485,1762957845533,-500.0,0.00039178,20]
[393737486,1762957845542,-586.45488064,0.00039178,20]
[393737487,1762957845552,-433.98592022,0.00039178,20]
[393737488,1762957845561,-500.0,0.00039178,20]
[393737489,1762957845571,-500.0,0.00039178,20]
[393737490,1762957845581,-190.06735362,0.00039178,20]
[393737491,1762957845590,-500.0,0.00039178,20]
[393737492,1762957845599,-203.5190816,0.00039178,20]
[393737493,1762957845614,-500.0,0.00039178,20]
[393737494,1762957845623,-500.0,0.00039178,20]
[393737495,1762957845633,-500.0,0.00039178,20]
[393737496,1762957845642,-622.315854,0.00039178,20]
[393737497,1762957845651,-570.79896627,0.00039178,20]
[393737498,1762957845660,-568.37918798,0.00039178,20]
[393737499,1762957845670,-289.85514899,0.00039178,20]
[393737500,1762957845679,-169.53798117,0.00039178,20]
[393737501,1762957845688,-500.0,0.00039178,20]
[393737502,1762957845698,-500.0,0.00039178,20]
[393737503,1762957845707,-534.7852418,0.00039178,20]
[393737504,1762957845716,-500.0,0.00039178,20]
[393737505,1762957845726,-500.0,0.00039178,20]
[393737506,1762957845736,-500.0,0.00039178,20]
[393737507,1762957845746,-399.18405703,0.00039178,20]
[393737508,1762957845756,-500.0,0.00039178,20]
[393737509,1762957845765,-500.0,0.00039178,20]
[393737510,1762957845774,-500.0,0.00039178,20]
[393737511,1762957845783,-500.0,0.00039178,20]
[393737512,1762957845793,-500.0,0.00039178,20]
[393737513,1762957845802,-500.0,0.00039178,20]
[393737514,1762957845811,-268.23783738,0.00039178,20]
[393737515,1762957845820,-500.0,0.00039178,20]
[393737517,1762957845829,-500.0,0.00039178,20]
[393737519,1762957845838,-500.0,0.00039178,20]
[393737520,1762957845848,-172.62900837,0.00039178,20]
[393737521,1762957845856,-500.0,0.00039178,20]
[393737522,1762957845865,-500.0,0.00039178,20]
[393737523,1762957845874,-508.51267122,0.00039178,20]
[393737524,1762957845883,-500.0,0.00039178,20]
[393737525,1762957845892,-500.0,0.00039178,20]
[393737526,1762957845901,-500.0,0.00039178,20]
[393737527,1762957845910,-500.0,0.00039178,20]
[393737528,1762957845920,-500.0,0.00039178,20]
[393737529,1762957845929,-500.0,0.00039178,20]
[393737530,1762957845938,-500.0,0.00039178,20]
[393737532,1762957845947,-500.0,0.00039178,20]
[393737535,1762957845956,-500.0,0.00039178,20]